bitfinex-derivatives/quotes_ETHF0:USTF0_20250730
["timestamp","ask_amount","ask_price","bid_price","bid_amount"]
[1753839793436,3.1781,3795.0,3794.9,3.2107]
[1753839793730,0.52711,3794.9,3794.7,2.32270278]
[1753839793928,3.856,3794.8,3794.7,2.32270278]
[1753839794134,2.9442,3794.8,3794.7,1.6288]
[1753839794434,3.1781,3794.8,3794.7,3.9067]
[1753839794833,3.1781,3794.8,3794.7,2.9663]
[1753839795435,3.1781,3794.8,3794.7,3.9067]
[1753839795840,3.856,3794.8,3794.7,1.6288]
[1753839796135,3.856,3794.8,3794.7,1.1513]
[1753839797134,4.38314,3794.8,3794.4,0.6933]
[1753839797334,0.52717,3794.5,3794.1,0.6933]
[1753839797538,3.1781,3794.2,3794.1,3.2107]
[1753839797739,0.613,3794.2,3794.1,3.2107]
[1753839797937,0.9118,3794.5,3794.4,0.4775]
[1753839798241,3.1781,3794.5,3794.4,2.3221]
[1753839798640,3.1781,3794.5,3794.4,1.1513]
[1753839798641,3.856,3794.5,3794.4,1.1513]
[1753839799138,4.38316,3794.5,3794.4,1.1513]
[1753839799535,3.1781,3794.5,3794.4,1.6288]
[1753839799736,0.7201,3794.8,3794.7,0.6442]
[1753839799937,0.9118,3795.3,3794.7,1.16998966]
[1753839800130,2.458,3795.3,3795.2,3.9067]
[1753839800437,3.1781,3795.3,3795.2,3.9067]
[1753839800638,3.1781,3795.3,3795.2,2.9663]
[1753839801041,3.856,3795.3,3795.2,1.6288]
[1753839801241,3.154,3795.0,3794.9,3.1571]
[1753839801639,1.0643,3794.4,3794.3,2.2484]
[1753839801845,0.6168,3794.4,3794.3,4.37159]
[1753839803138,1.5593,3795.1,3795.0,3.8444]
[1753839803334,4.33848,3795.1,3795.0,1.6251]
[1753839803839,3.154,3795.1,3795.0,2.9357]
[1753839804039,0.6168,3795.1,3795.0,4.3715]
[1753839804345,1.5593,3795.3,3795.2,3.68417]
[1753839804546,1.5593,3795.3,3795.2,4.37147]
[1753839805236,0.6168,3795.5,3795.2,1.6067]
[1753839805444,1.5593,3795.5,3795.4,3.8444]
[1753839805745,2.4782,3795.5,3795.4,3.8444]
[1753839805941,3.154,3795.5,3795.4,3.8444]
[1753839806640,1.20277,3796.0,3795.5,0.52703]
[1753839806844,2.2115,3796.0,3795.9,1.6251]
[1753839807140,0.9189,3796.0,3795.9,1.6251]
[1753839807338,0.6758,3796.2,3795.9,1.5504]
[1753839807543,3.154,3796.0,3795.9,1.5504]
[1753839808137,0.6168,3795.4,3795.3,2.76475]
[1753839808443,0.9425,3795.7,3795.6,3.8444]
[1753839808840,3.154,3796.2,3796.1,1.5504]
[1753839809045,3.154,3796.2,3796.1,3.8444]
[1753839809240,3.8114,3796.2,3796.1,1.6251]
[1753839809444,2.2757,3796.1,3795.3,2.294]
[1753839809637,0.6168,3795.6,3795.5,2.07742]
[1753839809837,1.5593,3795.6,3795.5,4.37142]
[1753839810044,3.154,3795.6,3795.5,2.9357]
[1753839810244,3.8114,3795.6,3795.5,1.6251]
[1753839810548,3.8114,3795.6,3795.5,1.1374]
[1753839810846,3.8114,3795.4,3795.3,1.1374]
[1753839811047,3.8114,3795.4,3795.3,1.6251]
[1753839811247,3.154,3795.4,3795.3,1.6251]
[1753839811453,3.154,3795.4,3795.3,2.3231]
[1753839812247,3.86707,3795.2,3795.0,5.274]
[1753839812443,3.86707,3795.2,3794.7,0.698]
[1753839812444,3.154,3794.8,3794.7,1.6251]
[1753839812742,3.154,3794.8,3794.7,2.9357]
[1753839813052,3.154,3794.8,3794.7,1.6251]
[1753839813247,2.06283,3794.8,3794.4,1.3853]
[1753839813443,1.5357,3794.5,3794.4,1.6358]
[1753839813644,3.154,3794.5,3794.4,2.2484]
[1753839813955,3.154,3794.5,3794.4,3.1571]
[1753839814251,3.154,3794.5,3794.4,3.8444]
[1753839814743,3.154,3794.4,3794.3,1.1003]
[1753839814938,3.154,3794.4,3794.3,2.2484]
[1753839815344,3.154,3794.4,3794.3,2.9357]
[1753839815742,3.8114,3794.4,3793.9,0.698]
[1753839815943,3.154,3794.0,3793.9,2.77565]
[1753839816146,3.154,3794.0,3793.9,3.68435]
[1753839816348,3.154,3794.0,3793.9,4.37165]
[1753839816744,2.4782,3794.0,3793.9,4.37165]
[1753839817454,3.68123,3794.0,3793.9,0.6873]
[1753839817747,3.8114,3793.9,3793.6,0.52729]
[1753839817945,3.8114,3793.9,3793.5,1.9126]
[1753839818153,3.8114,3793.9,3793.5,1.3853]
[1753839818353,3.8114,3793.9,3793.5,1.2253]
[1753839818555,3.8114,3793.9,3793.8,0.88235252]
[1753839819651,3.8114,3793.9,3793.8,0.19505252]
[1753839820648,1.5357,3793.2,3793.1,1.6251]
[1753839820953,3.154,3793.2,3793.1,3.8444]
[1753839821646,1.5593,3793.2,3793.1,3.8444]
[1753839822052,1.5593,3793.2,3793.1,2.3231]
[1753839822358,3.154,3793.2,3793.1,2.3231]
[1753839822856,3.154,3793.2,3793.1,1.1374]
[1753839823056,1.5357,3793.2,3792.9,0.6873]
[1753839823254,1.5357,3792.9,3792.8,2.7758]
[1753839823454,2.0307,3792.9,3792.8,3.6845]
[1753839823852,2.0307,3792.9,3792.8,4.3718]
[1753839824249,0.4714,3792.9,3792.8,4.3718]
[1753839824449,3.154,3793.5,3793.4,0.9378]
[1753839824649,3.154,3793.3,3793.2,2.3231]
[1753839824858,0.6168,3793.3,3793.2,3.8444]
[1753839825051,2.4782,3793.7,3793.6,1.5504]
[1753839825258,3.154,3793.7,3793.6,1.1374]
[1753839825557,3.5997,3793.7,3793.6,1.1374]
[1753839825762,3.154,3793.7,3793.6,1.6251]
[1753839826060,3.154,3793.7,3793.6,2.9357]
[1753839826251,2.0307,3793.7,3793.6,3.8444]
[1753839826457,1.5593,3793.7,3793.6,3.8444]
[1753839827060,3.154,3793.7,3793.6,3.8444]
[1753839827459,3.154,3793.7,3793.6,0.6873]
[1753839827654,0.6758,3793.6,3793.2,0.52734]
[1753839827854,3.154,3793.3,3793.2,2.98644]
[1753839828354,3.154,3793.3,3793.2,4.37174]
[1753839828558,3.154,3793.3,3793.2,3.46304]
[1753839828756,0.52725,3793.9,3793.5,0.52729]
[1753839828953,1.5593,3793.8,3793.7,3.8444]
[1753839829861,1.5593,3794.2,3794.1,3.8444]
[1753839830161,0.9425,3794.5,3794.1,1.6067]
[1753839830357,21.8661,3795.0,3794.7,3.8444]
[1753839830656,3.154,3794.9,3794.8,0.9378]
[1753839831355,3.154,3794.9,3794.8,1.6251]
[1753839831552,0.6921,3795.2,3794.8,3.9136]
[1753839831759,3.1594,3795.1,3795.0,1.5244]
[1753839832063,2.7148,3794.6,3794.5,1.5244]
[1753839832257,1.5583,3795.0,3794.9,2.3712]
[1753839832458,1.5583,3795.0,3794.9,3.9301]
[1753839832655,2.0227,3795.0,3794.9,3.9301]
[1753839832857,2.0227,3795.0,3794.9,2.9776]
[1753839832858,3.1594,3795.0,3794.9,2.9776]
[1753839833756,3.1594,3795.0,3794.9,3.9301]
[1753839836466,3.1594,3795.0,3794.9,2.9776]
[1753839836666,3.1594,3795.0,3794.9,3.50471]
[1753839836868,3.1594,3795.0,3794.9,2.9776]
[1753839838066,3.1594,3795.0,3794.9,3.50471]
[1753839838267,3.1594,3795.0,3794.9,4.45721]
[1753839838672,1.5583,3795.0,3794.9,4.45721]
[1753839838967,0.6145,3795.0,3794.9,4.45721]
[1753839840666,37.953,3795.5,3795.4,0.918]
[1753839840967,38.6451,3795.5,3795.4,3.9301]
[1753839841366,39.5889,3795.5,3795.4,3.9301]
[1753839841868,40.11593,3795.5,3795.4,3.9301]
[1753839842072,40.11593,3795.5,3795.4,2.9776]
[1753839842262,39.5889,3795.5,3795.4,2.9776]
[1753839843469,37.953,3795.5,3795.4,3.9301]
[1753839843659,39.5889,3795.5,3795.4,3.9301]
[1753839844058,39.5889,3795.5,3795.4,2.9776]
[1753839844371,38.8968,3795.5,3795.4,3.9301]
[1753839844569,1.5583,3795.5,3795.4,3.9301]
[1753839844765,3.1594,3795.5,3795.4,3.9301]
[1753839845065,3.1594,3795.5,3795.4,2.9776]
[1753839846774,21.33,3795.5,3795.4,1.5244]
[1753839847078,21.9445,3795.5,3795.4,1.5244]
[1753839847376,22.8883,3795.5,3795.4,1.5244]
[1753839847568,22.8883,3795.5,3795.4,3.9301]
[1753839848168,1.5583,3795.5,3795.4,3.9301]
[1753839848373,21.329,3795.5,3795.4,2.05143]
[1753839849075,1.6359,3795.7,3795.4,4.45713]
[1753839849271,22.8873,3795.6,3795.5,2.4057]
[1753839849574,22.8873,3795.6,3795.5,3.9301]
[1753839849773,1.5583,3795.6,3795.5,3.9301]
[1753839849980,22.8863,3795.6,3795.5,3.9301]
[1753839850174,1.5583,3795.6,3795.5,3.9301]
[1753839851475,3.1594,3795.6,3795.5,3.9301]
[1753839852077,3.5983,3795.6,3795.5,0.7298]
[1753839852279,4.17573001,3795.6,3795.5,0.7298]
[1753839852671,3.5983,3795.6,3795.5,1.179]
[1753839853174,3.1594,3795.6,3795.5,1.6478]
[1753839853375,3.1594,3795.6,3795.5,2.3712]
[1753839853571,0.52706,3795.3,3795.2,0.918]
[1753839853772,3.5983,3795.3,3795.2,1.6478]
[1753839854070,3.1594,3795.3,3795.2,3.9301]
[1753839855068,3.1594,3795.3,3794.3,5.274]
[1753839855275,3.1594,3795.3,3794.4,3.73388]
[1753839855276,0.6145,3794.5,3794.4,3.73388]
[1753839855579,3.1594,3794.5,3794.4,4.45728]
[1753839855772,3.1594,3794.5,3794.4,5.03471001]
[1753839855975,1.5583,3794.5,3794.4,5.03471001]
[1753839856175,2.4673,3794.8,3794.7,1.5244]
[1753839856371,3.1594,3794.8,3794.7,4.45724]
[1753839856683,3.1594,3794.8,3794.7,1.6478]
[1753839856884,3.5983,3794.8,3794.7,0.7298]
[1753839857278,0.5271,3795.0,3794.7,2.2542]
[1753839857485,2.2504,3794.9,3794.8,3.9301]
[1753839857979,2.7148,3794.9,3794.8,3.9301]
[1753839858177,3.1594,3794.9,3794.8,3.9301]
[1753839860788,1.5583,3794.9,3794.8,3.9301]
[1753839861083,24.4834,3795.2,3795.1,3.9301]
[1753839861989,25.01048,3795.2,3794.4,2.32270278]
[1753839862284,3.0851,3794.7,3794.6,4.26064]
[1753839863183,2.133,3795.1,3795.0,2.061]
[1753839863385,2.66008,3795.1,3795.0,4.2606]
[1753839863581,2.133,3795.1,3795.0,3.7335]
[1753839863784,0.5898,3795.1,3795.0,3.7335]
[1753839864579,1.5419,3795.1,3795.0,3.7335]
[1753839864885,24.4081,3795.4,3795.3,1.5339]
[1753839865073,3.0851,3795.4,3795.3,3.7335]
[1753839869187,1.5419,3795.4,3795.3,3.7335]
[1753839869390,22.8619,3795.4,3795.3,3.7335]
[1753839869690,23.5113,3795.4,3795.3,3.7335]
[1753839869884,24.4051,3795.4,3795.3,3.7335]
[1753839870286,1.4208,3795.7,3795.6,0.9315]
[1753839870590,24.4041,3795.7,3795.6,3.7335]
[1753839871189,3.0851,3795.7,3795.6,3.7335]
[1753839871391,24.4041,3795.7,3795.6,3.7335]
[1753839871592,24.4041,3795.7,3795.6,2.864]
[1753839871793,24.4041,3795.7,3795.6,1.1419]
[1753839871794,24.8179,3795.7,3795.6,1.1419]
[1753839871994,24.8179,3795.7,3795.6,0.6775]
[1753839872696,24.8179,3795.7,3795.6,1.1419]
[1753839873994,3.4989,3795.7,3795.6,2.2616]
[1753839874202,24.4021,3795.7,3795.6,2.2616]
[1753839874395,3.0851,3795.7,3795.6,2.2616]
[1753839874594,24.4011,3795.7,3795.6,2.2616]
[1753839876201,24.4011,3795.7,3795.6,3.7335]
[1753839876801,24.4001,3795.7,3795.6,3.7335]
[1753839877303,3.0851,3795.8,3795.7,4.2605]
[1753839877503,24.4001,3795.8,3795.7,4.2605]
[1753839877704,24.4001,3795.8,3795.7,3.7335]
[1753839878119,3.0851,3795.8,3795.7,3.7335]
[1753839878397,24.3991,3795.8,3795.7,3.7335]
[1753839878598,24.3991,3795.8,3795.7,1.609]
[1753839878797,24.3991,3795.8,3795.7,3.7335]
[1753839878999,1.5419,3795.8,3795.7,3.7335]
[1753839879199,22.8549,3795.8,3795.7,3.7335]
[1753839879402,24.3981,3795.8,3795.7,3.7335]
[1753839880299,4.0259,3795.7,3795.6,0.6775]
[1753839881002,2.01066,3795.3,3795.2,2.37843001]
[1753839881202,3.61216,3795.3,3795.2,3.63343001]
[1753839881598,3.61216,3795.3,3795.2,4.31093001]
[1753839881803,3.0851,3795.3,3795.2,4.31093001]
[1753839881999,3.0851,3795.3,3795.2,1.1419]
[1753839882303,3.4989,3795.3,3795.2,1.1419]
[1753839882899,3.4989,3795.3,3795.2,0.6775]
[1753839883204,3.0851,3794.8,3794.7,1.1419]
[1753839883704,3.0851,3794.8,3794.7,2.2616]
[1753839884697,0.52714,3794.7,3794.6,1.25493001]
[1753839884898,1.4836,3794.7,3794.6,0.4644]
[1753839885105,1.4836,3794.7,3794.6,2.2616]
[1753839885300,1.4836,3794.7,3794.6,3.44143001]
[1753839885503,3.0851,3794.7,3794.6,4.31093001]
[1753839886004,3.61224,3794.7,3794.6,4.31093001]
[1753839886301,0.6494,3795.6,3794.7,0.8695]
[1753839886505,24.92313,3795.5,3795.4,4.31093001]
[1753839886703,24.92213,3795.5,3795.4,1.609]
[1753839887000,2.133,3795.2,3795.1,1.04183001]
[1753839887211,24.3951,3795.2,3795.1,1.5841]
[1753839887595,2.133,3795.0,3794.9,0.6775]
[1753839887798,3.4989,3795.0,3794.9,0.6775]
[1753839887998,3.4989,3795.0,3794.9,1.1419]
[1753839888210,3.0851,3795.0,3794.9,1.609]
[1753839888400,3.0851,3795.0,3794.9,2.2616]
[1753839888901,3.0851,3795.0,3794.9,1.609]
[1753839889204,3.4989,3795.0,3794.9,0.6775]
[1753839892410,3.0851,3795.0,3794.9,3.7805]
[1753839893911,1.4487,3795.3,3795.2,3.7335]
[1753839894316,23.9091,3795.3,3795.2,3.7335]
[1753839894703,3.0596,3795.3,3795.2,3.7335]
[1753839894909,3.2596,3795.9,3795.8,0.8674]
[1753839895105,24.5666,3795.9,3795.8,2.8484]
[1753839895309,1.4957,3795.4,3795.3,1.5366]
[1753839895616,3.0596,3795.4,3795.3,1.5366]
[1753839895812,3.0596,3795.4,3795.3,3.0389]
[1753839896109,3.0596,3795.4,3795.3,3.7335]
[1753839898009,2.6021,3795.4,3795.3,3.7335]
[1753839898206,1.0382,3795.4,3795.3,3.7335]
[1753839898412,0.5818,3795.4,3795.3,3.7335]
[1753839898708,21.307,3795.5,3795.4,2.01164]
[1753839898904,0.2,3795.9,3795.8,3.0389]
[1753839899109,0.2,3795.9,3795.8,4.31093001]
[1753839900805,0.2,3795.9,3795.8,4.90302943]
[1753839904017,21.304,3796.5,3796.4,1.4846]
[1753839904212,21.304,3796.5,3796.4,3.7318]
[1753839904412,0.5818,3796.5,3796.4,3.7318]
[1753839904612,1.4487,3796.5,3796.4,3.7318]
[1753839905015,1.4487,3796.5,3796.4,4.2587]
[1753839905512,2.88941,3797.1,3797.0,0.4263]
[1753839905713,24.18741,3797.1,3797.0,1.1209]
[1753839906018,24.88441,3797.1,3797.0,1.562]
[1753839906418,25.27351,3797.1,3797.0,1.562]
[1753839906622,24.7467,3797.1,3797.0,1.1209]
[1753839907225,24.3576,3797.1,3797.0,2.2312]
[1753839907414,24.3576,3797.1,3797.0,2.8484]
[1753839907717,24.3576,3797.1,3797.0,3.7318]
[1753839908217,25.27351,3797.1,3797.0,1.1209]
[1753839908419,25.27351,3797.1,3797.0,0.6946]
[1753839910626,1.4957,3796.6,3796.5,0.6946]
[1753839910925,3.4487,3796.6,3796.5,0.6946]
[1753839911921,3.4487,3796.6,3796.2,0.6692]
[1753839911922,1.0382,3796.1,3796.0,0.4411]
[1753839912124,3.0596,3796.1,3796.0,0.8674]
[1753839912628,3.0596,3796.1,3796.0,2.2312]
[1753839912827,3.0596,3796.1,3796.0,3.7318]
[1753839913021,3.0596,3796.1,3796.0,4.25875]
[1753839913828,3.0596,3796.1,3796.0,3.7318]
[1753839914929,21.292,3796.4,3796.3,1.4846]
[1753839915133,21.292,3796.4,3795.6,6.59151]
[1753839915134,1.97555,3796.8,3796.7,2.368]
[1753839915336,1.0382,3796.3,3796.2,1.4846]
[1753839915530,3.0596,3796.3,3796.2,3.7318]
[1753839915730,3.0596,3796.3,3796.2,2.8484]
[1753839916535,3.0596,3796.3,3796.2,3.7318]
[1753839917232,3.0596,3796.3,3796.2,0.6946]
[1753839917541,3.4487,3796.3,3796.2,0.6946]
[1753839917733,3.0596,3796.0,3795.9,1.1209]
[1753839918037,3.0596,3796.0,3795.9,1.562]
[1753839918234,3.0596,3796.0,3795.9,2.2312]
[1753839918536,3.58656,3796.0,3795.9,0.6946]
[1753839918731,0.8669,3796.3,3796.2,2.1792]
[1753839918937,22.8509,3796.3,3796.2,3.7318]
[1753839919143,1.4487,3796.3,3796.2,4.25873]
[1753839919327,0.697,3796.6,3796.2,4.25873]
[1753839919328,2.1457,3796.6,3796.5,1.0435]
[1753839919528,0.8669,3797.4,3796.7,1.3638]
[1753839919731,3.0596,3796.9,3796.8,1.562]
[1753839920433,3.0596,3796.5,3796.4,1.1357]
[1753839920639,3.4487,3796.5,3796.4,0.6946]
[1753839921235,0.5269,3796.4,3796.1,0.6692]
[1753839921443,2.9177,3796.2,3796.1,1.5445]
[1753839922139,2.9177,3796.2,3796.1,3.35704]
[1753839922332,0.5664,3796.4,3796.3,2.02791]
[1753839922633,1.4365,3796.4,3796.3,3.6672]
[1753839922834,1.4365,3796.4,3796.3,4.24432157]
[1753839923039,0.5664,3796.4,3796.3,4.24432157]
[1753839923230,1.96337,3796.6,3796.5,3.6672]
[1753839923429,3.44457,3796.6,3796.5,3.6672]
[1753839923741,2.9177,3796.6,3796.5,2.2201]
[1753839924134,2.9177,3796.6,3796.5,2.8301]
[1753839924335,2.9177,3796.6,3796.5,0.6535]
[1753839924541,3.2847,3796.6,3796.5,0.6535]
[1753839925136,3.2847,3796.6,3796.5,1.0925]
[1753839925441,2.9177,3796.6,3796.5,1.5445]
[1753839925642,21.286,3796.7,3796.5,4.19408]
[1753839925831,22.1561,3796.7,3796.6,2.1662]
[1753839926031,1.4365,3796.7,3796.6,3.40722157]
[1753839926243,21.8504,3796.7,3796.6,4.24432157]
[1753839926442,23.15,3797.0,3796.9,1.501]
[1753839926643,23.7821,3797.0,3796.9,3.6672]
[1753839927342,1.4365,3797.0,3796.9,4.77115157]
[1753839927537,21.283,3797.2,3796.9,2.60495157]
[1753839927737,22.7195,3797.2,3797.1,1.501]
[1753839927938,22.7195,3797.2,3797.1,3.6672]
[1753839928642,1.4365,3797.5,3797.4,2.02776]
[1753839928833,22.7185,3797.5,3797.4,4.19396]
[1753839929944,21.282,3797.5,3797.4,4.19396]
[1753839930244,22.7185,3797.5,3797.4,4.19396]
[1753839931047,0.986,3797.2,3797.1,1.0925]
[1753839931240,2.9177,3797.2,3797.1,1.0925]
[1753839931440,2.9177,3797.2,3797.1,1.5445]
[1753839931643,2.9177,3797.2,3797.1,2.2201]
[1753839931942,1.866,3797.2,3797.1,3.6672]
[1753839932137,2.9177,3797.2,3797.1,1.5445]
[1753839932344,2.9177,3797.2,3797.1,1.0925]
[1753839932845,3.2847,3797.2,3797.1,1.0925]
[1753839933643,23.6303,3797.2,3796.5,0.52689]
[1753839933840,2.9177,3796.7,3796.6,2.2201]
[1753839934147,2.9177,3796.7,3796.6,1.5445]
[1753839935442,2.9177,3796.7,3796.6,2.2201]
[1753839935746,2.9177,3796.7,3796.6,3.6672]
[1753839936743,2.9177,3796.7,3796.6,2.8301]
[1753839936947,2.9177,3796.7,3796.6,2.2201]
[1753839937143,2.9177,3796.7,3796.6,0.6535]
[1753839937344,3.2847,3796.7,3796.6,0.6535]
[1753839937644,2.9177,3796.4,3796.3,2.70352]
[1753839937837,2.9177,3796.4,3796.3,3.0137]
[1753839938036,2.9177,3796.1,3796.0,2.2201]
[1753839938842,3.44464,3796.1,3796.0,1.0925]
[1753839939242,2.9177,3796.1,3796.0,3.6672]
[1753839939439,3.44464,3796.1,3796.0,3.6672]
[1753839939644,3.44464,3796.1,3796.0,1.5445]
[1753839939840,6.5856445,3797.2,3796.0,1.5445]
[1753839939841,1.89554675,3798.2,3797.1,1.18031]
[1753839940043,1.1448091,3797.9,3797.8,3.6672]
[1753839940242,1.8389424,3797.9,3797.8,3.6672]
[1753839940444,1.6365,3797.9,3797.8,4.19391]
[1753839940640,2.33056747,3797.9,3797.8,4.19391]
[1753839941253,0.89406747,3797.9,3797.8,4.19391]
[1753839941454,0.2,3797.9,3797.8,4.19391]
[1753839941948,0.018,3798.3,3798.2,0.52665]
[1753839942152,0.018,3798.3,3798.2,4.19385]
[1753839942343,2.1484914,3798.3,3798.2,3.6672]
[1753839942544,1.884,3798.3,3798.2,3.6672]
[1753839944248,0.4475,3798.3,3798.2,3.6672]
[1753839944449,0.018,3798.3,3798.2,3.6672]
[1753839945050,1.4545,3798.3,3798.2,3.6672]
[1753839945245,1.884,3798.3,3798.2,3.6672]
[1753839946749,2.5161,3798.3,3798.2,3.6672]
[1753839949160,2.9357,3798.3,3798.2,3.6672]
[1753839949356,2.9177,3798.0,3797.9,0.439]
[1753839949556,3.44438,3798.0,3797.9,2.1766]
[1753839949858,3.44438,3798.0,3797.9,0.439]
[1753839950058,3.81138,3798.0,3797.9,1.0925]
[1753839950954,2.2856,3797.7,3797.6,0.439]
[1753839951163,2.9177,3797.7,3797.6,0.439]
[1753839951460,2.9177,3797.7,3797.6,1.5331]
[1753839951757,0.8436,3797.6,3796.9,1.16893]
[1753839951957,2.4678,3797.0,3796.9,4.05303]
[1753839952263,2.9215,3797.0,3796.9,2.6942]
[1753839952562,3.44825,3797.5,3797.4,2.6942]
[1753839953055,1.8255,3797.7,3797.6,1.95224]
[1753839953258,1.8255,3797.7,3797.6,4.05294]
[1753839953558,0.6423,3797.8,3797.6,4.05294]
[1753839953559,0.52668,3798.1,3797.6,1.4255]
[1753839953759,0.8436,3797.9,3797.8,2.2575]
[1753839954057,0.3506,3798.4,3797.8,2.2575]
[1753839954058,0.5557,3799.4,3799.3,2.0676]
[1753839954249,0.5557,3799.4,3799.3,3.5262]
[1753839954656,2.9215,3799.4,3799.3,3.5262]
[1753839954858,2.9215,3799.4,3799.3,4.0527]
[1753839955051,2.9215,3799.4,3799.3,3.2207]
[1753839955260,2.4678,3799.4,3799.3,4.0527]
[1753839955459,1.8255,3799.4,3799.3,4.0527]
[1753839956477,1.8255,3799.5,3799.4,2.6942]
[1753839956763,2.9215,3799.8,3799.7,1.4255]
[1753839956964,2.9215,3799.8,3799.7,2.6942]
[1753839957362,0.2,3799.9,3799.8,1.07723]
[1753839957555,1.0436,3799.9,3799.8,4.05263]
[1753839958362,0.2,3799.9,3799.8,4.05263]
[1753839958565,0.018,3801.3,3800.6,1.16842]
[1753839958759,2.2792,3801.2,3801.1,0.4508]
[1753839958961,3.61212984,3801.2,3801.1,1.0929]
[1753839959260,1.4859,3801.1,3800.7,0.6421]
[1753839959460,1.8255,3800.8,3800.7,2.8925]
[1753839959655,2.4678,3800.8,3800.7,1.0929]
[1753839959860,0.9819,3800.3,3800.2,1.4255]
[1753839960061,0.9819,3800.3,3800.2,4.04548]
[1753839960062,1.8255,3800.3,3800.2,4.04548]
[1753839960366,1.8255,3800.3,3800.2,1.5168]
[1753839960367,2.9215,3800.3,3800.2,1.5168]
[1753839960668,2.9215,3800.3,3800.2,3.5191]
[1753839961068,2.4678,3800.3,3800.2,3.5191]
[1753839961778,1.8255,3800.3,3800.2,3.5191]
[1753839962263,2.4678,3800.9,3800.8,3.5191]
[1753839962461,2.9215,3800.9,3800.8,2.6942]
[1753839962965,2.9215,3800.9,3800.8,3.5191]
[1753839963164,10.26281165,3800.9,3800.0,0.6421]
[1753839963355,0.6423,3801.2,3799.9,0.6266]
[1753839963356,2.9215,3800.7,3800.6,2.1434]
[1753839963667,2.9215,3800.7,3800.6,2.0521]
[1753839963963,0.52625,3801.1,3800.6,0.8249]
[1753839964168,2.9215,3800.7,3800.6,1.5013]
[1753839964464,1.16854,3801.2,3800.7,0.52631]
[1753839964770,1.4356,3801.1,3801.0,3.5191]
[1753839965162,2.9215,3801.1,3801.0,3.5191]
[1753839966360,2.9215,3801.1,3801.0,2.6942]
[1753839966764,1.8255,3801.1,3801.0,3.5191]
[1753839966961,0.018,3801.3,3800.8,1.16955338]
[1753839966962,0.018,3801.3,3801.2,2.1434]
[1753839967159,0.2,3801.9,3801.8,0.52615]
[1753839967467,0.2,3801.9,3801.8,3.5191]
[1753839967762,2.0255,3801.9,3801.8,4.04525]
[1753839967969,0.7557,3801.9,3801.8,4.04525]
[1753839968162,0.2,3801.9,3801.8,4.04525]
[1753839968559,2.56283399,3803.9,3802.0,0.8249]
[1753839968759,0.68784637,3803.2,3803.1,1.2687]
[1753839968957,2.17374637,3803.2,3803.1,0.6421]
[1753839969159,0.52604,3802.7,3802.2,0.6421]
[1753839969363,0.6423,3802.5,3802.0,0.6266]
[1753839969668,5.25879862,3802.5,3801.7,0.6421]
[1753839969859,1.4859,3802.2,3801.7,0.6421]
[1753839970065,0.8436,3802.6,3802.0,1.16822]
[1753839970260,0.2,3803.9,3803.0,0.6421]
[1753839970457,1.4859,3803.6,3803.0,0.6421]
[1753839970662,0.52599,3803.0,3802.1,5.26045844]
[1753839970862,1.4859,3803.1,3802.3,2.0936]
[1753839971058,0.8436,3803.1,3802.7,1.35093]
[1753839971369,0.52588,3803.8,3803.0,0.8249]
[1753839971570,1.0436,3803.9,3803.3,0.6421]
[1753839971863,1.0436,3803.9,3803.4,1.467]
[1753839972062,0.2,3803.9,3803.6,0.5259]
[1753839972266,0.3,3804.5,3803.9,1.467]
[1753839972571,0.3,3804.5,3804.3,0.6421]
[1753839972869,0.3,3804.5,3804.4,1.467]
[1753839973260,0.3,3804.5,3804.4,6.72400166]
[1753839973566,0.3,3804.5,3804.4,2.0936]
[1753839974266,0.52585,3804.1,3803.4,2.0936]
[1753839974471,0.8436,3804.1,3803.5,0.6266]
[1753839974674,0.52589,3803.7,3803.6,0.6421]
[1753839974870,2.01182,3803.5,3803.4,5.89910166]
[1753839975070,0.8436,3803.1,3803.0,0.6421]
[1753839975264,1.4859,3803.1,3803.0,0.6421]
[1753839975570,2.01187,3803.1,3803.0,0.6421]
[1753839975765,0.6423,3802.7,3801.9,0.6421]
[1753839975963,0.8436,3802.6,3801.9,1.2687]
[1753839976266,0.52611,3802.1,3801.9,0.6266]
[1753839976566,0.3453,3802.8,3801.9,0.6266]
[1753839976567,1.4859,3802.7,3801.9,1.2687]
[1753839976773,2.62946,3803.8,3802.1,0.6421]
[1753839976774,2.01194,3802.6,3802.1,0.6421]
[1753839977075,2.01194,3802.6,3801.9,1.2687]
[1753839977076,0.8436,3802.5,3801.9,1.2687]
[1753839977374,1.4859,3801.9,3801.8,0.19464208]
[1753839977570,1.4859,3802.5,3801.8,0.82124208]
[1753839977967,1.4859,3802.5,3801.9,0.6421]
[1753839978364,1.4859,3802.5,3801.9,1.16824]
[1753839978573,0.8436,3802.5,3802.2,0.6421]
[1753839978765,0.8436,3802.5,3801.9,2.0857]
[1753839978962,37.888,3803.4,3802.5,1.4436]
[1753839979164,0.52588,3803.9,3802.4,1.33158963]
[1753839979466,0.52588,3803.9,3802.4,6.59170219]
[1753839979776,1.36946,3804.0,3803.4,2.0857]
[1753839979967,1.36946,3804.0,3803.4,1.4436]
[1753839980167,0.52589,3803.8,3803.6,0.6421]
[1753839980368,1.4859,3803.7,3803.6,0.6421]
[1753839980572,1.4859,3803.7,3803.6,1.2687]